[Event "Titled Tuesday Blitz March 07 Late 2023"]
[White "Mahdavi, Reza"]
[Black "Poeta, Caio Medeiros"]
[WhiteFideId "12595926"]
[BlackFideId "2142660"]
[WhiteElo "2208"]
[BlackElo "2191"]
[Result "1-0"]
[Round "05"]
[TimeControl "180+2"]
[Date "2023.03.07"]
[WhiteClock "0:01:54"]
[BlackClock "0:00:19"]

1. Nf3 {[%clk 0:03:00]}  d5 {[%clk 0:02:55]} 2. g3 {[%clk 0:03:00]}  Nf6 {[%clk 0:02:56]} 3. Bg2 {[%clk 0:03:01]}  e6 {[%clk 0:02:57]} 4. d4 {[%clk 0:03:01]}  Be7 {[%clk 0:02:58]} 5. O-O {[%clk 0:03:01]}  O-O {[%clk 0:02:59]} 6. c4 {[%clk 0:03:02]}  c6 {[%clk 0:02:59]} 7. b3 {[%clk 0:02:51]}  Nbd7 {[%clk 0:02:58]} 8. Qc2 {[%clk 0:02:50]}  b6 {[%clk 0:02:59]} 9. Rd1 {[%clk 0:02:50]}  Bb7 {[%clk 0:02:57]} 10. Nc3 {[%clk 0:02:43]}  Rc8 {[%clk 0:02:57]} 11. e4 {[%clk 0:02:41]}  c5 {[%clk 0:02:55]} 12. exd5 {[%clk 0:02:35]}  exd5 {[%clk 0:02:54]} 13. dxc5 {[%clk 0:02:35]}  Nxc5 {[%clk 0:02:49]} 14. Bg5 {[%clk 0:02:35]}  h6 {[%clk 0:02:36]} 15. Bf4 {[%clk 0:02:29]}  Nce4 {[%clk 0:02:25]} 16. Nxe4 {[%clk 0:02:19]}  Nxe4 {[%clk 0:02:22]} 17. Nd4 {[%clk 0:02:20]}  Bf6 {[%clk 0:01:56]} 18. Rac1 {[%clk 0:02:20]}  Re8 {[%clk 0:01:46]} 19. Nb5 {[%clk 0:02:16]}  a6 {[%clk 0:01:43]} 20. Bxe4 {[%clk 0:02:15]}  axb5 {[%clk 0:01:42]} 21. Bxd5 {[%clk 0:02:14]}  Bxd5 {[%clk 0:01:42]} 22. Rxd5 {[%clk 0:02:15]}  Qxd5 {[%clk 0:01:35]} 23. cxd5 {[%clk 0:02:16]}  Rxc2 {[%clk 0:01:35]} 24. Rxc2 {[%clk 0:02:16]}  Re1+ {[%clk 0:01:35]} 25. Kg2 {[%clk 0:02:16]}  Rd1 {[%clk 0:01:36]} 26. Bd2 {[%clk 0:02:09]}  Kf8 {[%clk 0:01:30]} 27. Kf3 {[%clk 0:02:08]}  Ke7 {[%clk 0:01:29]} 28. Ke2 {[%clk 0:02:08]}  Rh1 {[%clk 0:01:29]} 29. h4 {[%clk 0:02:08]}  Kd6 {[%clk 0:01:28]} 30. Rc6+ {[%clk 0:02:06]}  Kxd5 {[%clk 0:01:28]} 31. Rxb6 {[%clk 0:02:06]}  Kc5 {[%clk 0:01:25]} 32. Be3+ {[%clk 0:02:02]}  Kb4 {[%clk 0:01:24]} 33. a4 {[%clk 0:01:58]}  Kxb3 {[%clk 0:01:23]} 34. axb5 {[%clk 0:01:59]}  Kc4 {[%clk 0:01:19]} 35. Rb7 {[%clk 0:01:59]}  Rb1 {[%clk 0:01:18]} 36. Rxf7 {[%clk 0:02:00]}  Rxb5 {[%clk 0:01:16]} 37. Bxh6 {[%clk 0:02:00]}  Re5+ {[%clk 0:00:20]} 38. Kf1 {[%clk 0:01:59]}  gxh6 {[%clk 0:00:20]} 39. Rxf6 {[%clk 0:01:59]}  h5 {[%clk 0:00:21]} 40. Rg6 {[%clk 0:01:54]}  Kd3 {[%clk 0:00:19]} 41. Rg5 {[%clk 0:01:53]}  Re8 {[%clk 0:00:19]} 42. Rxh5 {[%clk 0:01:53]}  Ra8 {[%clk 0:00:19]} 43. Rf5 {[%clk 0:01:52]}  Ra1+ {[%clk 0:00:20]} 44. Kg2 {[%clk 0:01:52]}  Ke4 {[%clk 0:00:20]} 45. Rf4+ {[%clk 0:01:53]}  Ke5 {[%clk 0:00:20]} 46. h5 {[%clk 0:01:54]}  Ra6 {[%clk 0:00:20]} 47. Kh3 {[%clk 0:01:53]}  Ra1 {[%clk 0:00:17]} 48. Kg4 {[%clk 0:01:53]}  Ra8 {[%clk 0:00:17]} 49. Kg5 {[%clk 0:01:54]}  Rg8+ {[%clk 0:00:17]} 50. Kh4 {[%clk 0:01:55]}  Ra8 {[%clk 0:00:17]} 51. h6 {[%clk 0:01:55]}  Ra1 {[%clk 0:00:18]} 52. Kg5 {[%clk 0:01:53]}  Rh1 {[%clk 0:00:18]} 53. Rh4 {[%clk 0:01:53]}  Ra1 {[%clk 0:00:19]} 54. h7 {[%clk 0:01:54]}  Ra8 {[%clk 0:00:19]} 55. h8=Q+ {[%clk 0:01:54]} 1-0


[Site "https://www.chess.com"]

[Event "Titled Tuesday Blitz March 07 Late 2023"]
[White "Harsh Suresh"]
[Black "Womacka, Mathias"]
[WhiteFideId "45018464"]
[BlackFideId "4611390"]
[WhiteElo "2227"]
[BlackElo "2377"]
[Result "1-0"]
[Round "05"]
[TimeControl "180+2"]
[Date "2023.03.07"]
[WhiteClock "0:00:05"]
[BlackClock "0:00:02"]

1. e4 {[%clk 0:03:00]}  c5 {[%clk 0:02:57]} 2. Nc3 {[%clk 0:03:00]}  Nc6 {[%clk 0:02:57]} 3. Bb5 {[%clk 0:03:00]}  Nd4 {[%clk 0:02:56]} 4. Bc4 {[%clk 0:02:55]}  e6 {[%clk 0:02:54]} 5. Nf3 {[%clk 0:02:55]}  Nf6 {[%clk 0:02:45]} 6. O-O {[%clk 0:02:55]}  a6 {[%clk 0:02:44]} 7. e5 {[%clk 0:02:48]}  d5 {[%clk 0:02:42]} 8. exf6 {[%clk 0:02:48]}  dxc4 {[%clk 0:02:41]} 9. fxg7 {[%clk 0:02:49]}  Bxg7 {[%clk 0:02:41]} 10. d3 {[%clk 0:02:49]}  cxd3 {[%clk 0:02:38]} 11. cxd3 {[%clk 0:02:50]}  Bd7 {[%clk 0:02:32]} 12. Be3 {[%clk 0:02:23]}  Bc6 {[%clk 0:02:29]} 13. Ne4 {[%clk 0:02:23]}  Qd5 {[%clk 0:02:04]} 14. Rc1 {[%clk 0:02:16]}  b6 {[%clk 0:01:45]} 15. Re1 {[%clk 0:00:42]}  O-O {[%clk 0:01:17]} 16. Bxd4 {[%clk 0:00:33]}  cxd4 {[%clk 0:01:16]} 17. b3 {[%clk 0:00:25]}  Rac8 {[%clk 0:01:14]} 18. Qe2 {[%clk 0:00:23]}  Bb7 {[%clk 0:01:09]} 19. Ned2 {[%clk 0:00:21]}  Bh6 {[%clk 0:01:05]} 20. Rxc8 {[%clk 0:00:21]}  Rxc8 {[%clk 0:01:04]} 21. Nc4 {[%clk 0:00:22]}  Qc5 {[%clk 0:00:44]} 22. Nfd2 {[%clk 0:00:11]}  b5 {[%clk 0:00:42]} 23. Ne5 {[%clk 0:00:10]}  Qe7 {[%clk 0:00:21]} 24. Ne4 {[%clk 0:00:08]}  f5 {[%clk 0:00:18]} 25. Ng3 {[%clk 0:00:07]}  Qf6 {[%clk 0:00:15]} 26. Nf3 {[%clk 0:00:07]}  Bd5 {[%clk 0:00:13]} 27. Nh5 {[%clk 0:00:07]}  Qg6 {[%clk 0:00:13]} 28. Ng3 {[%clk 0:00:03]}  Kh8 {[%clk 0:00:13]} 29. Nh4 {[%clk 0:00:03]}  Qf6 {[%clk 0:00:12]} 30. Nf3 {[%clk 0:00:03]}  Bg7 {[%clk 0:00:12]} 31. h3 {[%clk 0:00:03]}  Rc3 {[%clk 0:00:10]} 32. Nh5 {[%clk 0:00:04]}  Qf7 {[%clk 0:00:09]} 33. Nxg7 {[%clk 0:00:04]}  Kxg7 {[%clk 0:00:10]} 34. Nxd4 {[%clk 0:00:04]}  Qf6 {[%clk 0:00:09]} 35. Nxe6+ {[%clk 0:00:05]}  Bxe6 {[%clk 0:00:10]} 36. Qxe6 {[%clk 0:00:05]}  Qxe6 {[%clk 0:00:11]} 37. Rxe6 {[%clk 0:00:06]}  Rxd3 {[%clk 0:00:11]} 38. Rxa6 {[%clk 0:00:06]}  Rd2 {[%clk 0:00:11]} 39. g3 {[%clk 0:00:06]}  h5 {[%clk 0:00:10]} 40. Kg2 {[%clk 0:00:06]}  h4 {[%clk 0:00:08]} 41. gxh4 {[%clk 0:00:06]}  f4 {[%clk 0:00:07]} 42. Kf3 {[%clk 0:00:06]}  Rc2 {[%clk 0:00:06]} 43. Ra5 {[%clk 0:00:05]}  Kg6 {[%clk 0:00:05]} 44. Rxb5 {[%clk 0:00:03]}  Rxa2 {[%clk 0:00:04]} 45. b4 {[%clk 0:00:04]}  Ra3+ {[%clk 0:00:03]} 46. Kxf4 {[%clk 0:00:04]}  Rxh3 {[%clk 0:00:04]} 47. Kg4 {[%clk 0:00:04]}  Rb3 {[%clk 0:00:04]} 48. Rb6+ {[%clk 0:00:05]}  Kg7 {[%clk 0:00:04]} 49. f4 {[%clk 0:00:05]}  Rb2 {[%clk 0:00:03]} 50. b5 {[%clk 0:00:06]}  Rg2+ {[%clk 0:00:03]} 51. Kf5 {[%clk 0:00:06]}  Rh2 {[%clk 0:00:03]} 52. Rb7+ {[%clk 0:00:06]}  Kh6 {[%clk 0:00:02]} 53. b6 {[%clk 0:00:06]}  Rxh4 {[%clk 0:00:02]} 54. Rb8 {[%clk 0:00:05]}  Rh5+ {[%clk 0:00:01]} 55. Kf6 {[%clk 0:00:05]}  Rb5 {[%clk 0:00:02]} 56. Rh8# {[%clk 0:00:05]} 1-0


[Site "https://www.chess.com"]

[Event "Titled Tuesday Blitz March 07 Late 2023"]
[White "Kleiman, Jake"]
[Black "Clarke, Brandon G I"]
[WhiteFideId "2020041"]
[BlackFideId "400319"]
[WhiteElo "2484"]
[BlackElo "2414"]
[Result "1/2-1/2"]
[Round "05"]
[TimeControl "180+2"]
[Date "2023.03.07"]
[WhiteClock "0:00:12"]
[BlackClock "0:00:09"]

1. e4 {[%clk 0:02:49]}  c5 {[%clk 0:02:59]} 2. c3 {[%clk 0:02:49]}  d6 {[%clk 0:02:58]} 3. d4 {[%clk 0:02:48]}  Nf6 {[%clk 0:02:58]} 4. Bd3 {[%clk 0:02:48]}  cxd4 {[%clk 0:02:58]} 5. cxd4 {[%clk 0:02:48]}  e5 {[%clk 0:02:56]} 6. dxe5 {[%clk 0:02:40]}  dxe5 {[%clk 0:02:57]} 7. Nf3 {[%clk 0:02:41]}  Nc6 {[%clk 0:02:57]} 8. Nc3 {[%clk 0:02:38]}  Bb4 {[%clk 0:02:54]} 9. O-O {[%clk 0:02:36]}  O-O {[%clk 0:02:54]} 10. Bg5 {[%clk 0:02:36]}  Bxc3 {[%clk 0:02:52]} 11. bxc3 {[%clk 0:02:34]}  h6 {[%clk 0:02:52]} 12. Bh4 {[%clk 0:02:32]}  Bg4 {[%clk 0:02:51]} 13. h3 {[%clk 0:02:32]}  Bh5 {[%clk 0:02:51]} 14. Qe2 {[%clk 0:02:19]}  Qe7 {[%clk 0:02:48]} 15. g4 {[%clk 0:02:12]}  Bg6 {[%clk 0:02:46]} 16. g5 {[%clk 0:02:12]}  hxg5 {[%clk 0:02:42]} 17. Bxg5 {[%clk 0:02:12]}  Bh5 {[%clk 0:02:42]} 18. Qe3 {[%clk 0:02:12]}  Qe6 {[%clk 0:02:38]} 19. Nh4 {[%clk 0:02:10]}  Nh7 {[%clk 0:02:33]} 20. Nf5 {[%clk 0:02:09]}  f6 {[%clk 0:02:21]} 21. Bh4 {[%clk 0:02:04]}  g6 {[%clk 0:02:15]} 22. Ng3 {[%clk 0:02:00]}  Qxh3 {[%clk 0:02:11]} 23. Nxh5 {[%clk 0:01:56]}  Qxh4 {[%clk 0:02:09]} 24. Ng3 {[%clk 0:01:52]}  Ng5 {[%clk 0:02:09]} 25. Rfd1 {[%clk 0:01:30]}  Nh3+ {[%clk 0:02:06]} 26. Kf1 {[%clk 0:01:25]}  Nf4 {[%clk 0:02:06]} 27. Bc4+ {[%clk 0:01:22]}  Kh8 {[%clk 0:02:02]} 28. Qf3 {[%clk 0:01:12]}  Rad8 {[%clk 0:01:57]} 29. Kg1 {[%clk 0:01:06]}  Kg7 {[%clk 0:01:52]} 30. Rxd8 {[%clk 0:01:01]}  Rxd8 {[%clk 0:01:53]} 31. Rd1 {[%clk 0:01:01]}  Rxd1+ {[%clk 0:01:47]} 32. Qxd1 {[%clk 0:01:02]}  Qh3 {[%clk 0:01:47]} 33. Bf1 {[%clk 0:00:52]}  Qe6 {[%clk 0:01:47]} 34. a4 {[%clk 0:00:51]}  a6 {[%clk 0:01:30]} 35. Qb1 {[%clk 0:00:47]}  Qd7 {[%clk 0:01:30]} 36. Qb6 {[%clk 0:00:43]}  Kh6 {[%clk 0:01:24]} 37. Ne2 {[%clk 0:00:33]}  Nxe2+ {[%clk 0:01:15]} 38. Bxe2 {[%clk 0:00:34]}  Kg7 {[%clk 0:01:07]} 39. Bf1 {[%clk 0:00:31]}  Ne7 {[%clk 0:00:58]} 40. f3 {[%clk 0:00:22]}  g5 {[%clk 0:00:57]} 41. Bc4 {[%clk 0:00:19]}  Qc6 {[%clk 0:00:56]} 42. Qb4 {[%clk 0:00:18]}  Ng6 {[%clk 0:00:56]} 43. Bd5 {[%clk 0:00:19]}  Qc7 {[%clk 0:00:51]} 44. Qxb7 {[%clk 0:00:19]}  Qxb7 {[%clk 0:00:51]} 45. Bxb7 {[%clk 0:00:20]}  a5 {[%clk 0:00:52]} 46. Kf2 {[%clk 0:00:20]}  Kf7 {[%clk 0:00:52]} 47. Ke3 {[%clk 0:00:20]}  Ke6 {[%clk 0:00:53]} 48. Ba6 {[%clk 0:00:20]}  Kd6 {[%clk 0:00:53]} 49. Bf1 {[%clk 0:00:18]}  Nf4 {[%clk 0:00:53]} 50. Bc4 {[%clk 0:00:17]}  Kc5 {[%clk 0:00:54]} 51. Bb3 {[%clk 0:00:17]}  Ng2+ {[%clk 0:00:53]} 52. Kf2 {[%clk 0:00:17]}  Nh4 {[%clk 0:00:54]} 53. Ke3 {[%clk 0:00:18]}  Ng6 {[%clk 0:00:54]} 54. Bf7 {[%clk 0:00:17]}  Ne7 {[%clk 0:00:55]} 55. Bb3 {[%clk 0:00:18]}  Nc8 {[%clk 0:00:55]} 56. Ba2 {[%clk 0:00:18]}  Nb6 {[%clk 0:00:55]} 57. Kd3 {[%clk 0:00:19]}  Nxa4 {[%clk 0:00:56]} 58. Bb3 {[%clk 0:00:19]}  Nb6 {[%clk 0:00:57]} 59. Bc2 {[%clk 0:00:18]}  a4 {[%clk 0:00:57]} 60. Bb1 {[%clk 0:00:19]}  a3 {[%clk 0:00:57]} 61. Ba2 {[%clk 0:00:20]}  Na4 {[%clk 0:00:58]} 62. Bb3 {[%clk 0:00:20]}  Nb2+ {[%clk 0:00:57]} 63. Kc2 {[%clk 0:00:20]}  Nc4 {[%clk 0:00:57]} 64. Kd3 {[%clk 0:00:20]}  Nd6 {[%clk 0:00:55]} 65. Ba2 {[%clk 0:00:20]}  Nb5 {[%clk 0:00:39]} 66. Bb3 {[%clk 0:00:20]}  Na7 {[%clk 0:00:37]} 67. Ba2 {[%clk 0:00:20]}  Nc6 {[%clk 0:00:37]} 68. Bb3 {[%clk 0:00:20]}  Ne7 {[%clk 0:00:30]} 69. Ba2 {[%clk 0:00:19]}  Ng6 {[%clk 0:00:30]} 70. Bb3 {[%clk 0:00:19]}  Kb5 {[%clk 0:00:30]} 71. Ke3 {[%clk 0:00:17]}  Nf4 {[%clk 0:00:29]} 72. Kd2 {[%clk 0:00:17]}  Ng2 {[%clk 0:00:27]} 73. Ke2 {[%clk 0:00:17]}  Nh4 {[%clk 0:00:24]} 74. Ke3 {[%clk 0:00:18]}  Ng6 {[%clk 0:00:22]} 75. Ke2 {[%clk 0:00:18]}  Nf4+ {[%clk 0:00:21]} 76. Ke3 {[%clk 0:00:18]}  Kc5 {[%clk 0:00:22]} 77. Ba2 {[%clk 0:00:17]}  Kd6 {[%clk 0:00:22]} 78. Kd2 {[%clk 0:00:17]}  Ne6 {[%clk 0:00:22]} 79. Kd3 {[%clk 0:00:16]}  Nc5+ {[%clk 0:00:22]} 80. Kc4 {[%clk 0:00:17]}  Na4 {[%clk 0:00:21]} 81. Kb4 {[%clk 0:00:17]}  Nb2 {[%clk 0:00:21]} 82. Kxa3 {[%clk 0:00:17]}  Nd3 {[%clk 0:00:22]} 83. Bc4 {[%clk 0:00:16]}  Ne1 {[%clk 0:00:18]} 84. Be2 {[%clk 0:00:16]}  Kc5 {[%clk 0:00:18]} 85. Kb3 {[%clk 0:00:16]}  Ng2 {[%clk 0:00:18]} 86. Kc2 {[%clk 0:00:16]}  Nf4 {[%clk 0:00:19]} 87. Bf1 {[%clk 0:00:16]}  Ng6 {[%clk 0:00:18]} 88. Kd2 {[%clk 0:00:16]}  Nh4 {[%clk 0:00:18]} 89. Be2 {[%clk 0:00:16]}  Ng2 {[%clk 0:00:18]} 90. Bf1 {[%clk 0:00:16]}  Nf4 {[%clk 0:00:18]} 91. Ke3 {[%clk 0:00:16]}  Ne6 {[%clk 0:00:18]} 92. Be2 {[%clk 0:00:16]}  Kb6 {[%clk 0:00:18]} 93. Kd3 {[%clk 0:00:16]}  Nf4+ {[%clk 0:00:18]} 94. Ke3 {[%clk 0:00:16]}  Ka5 {[%clk 0:00:19]} 95. Bd1 {[%clk 0:00:15]}  Kb5 {[%clk 0:00:19]} 96. Bb3 {[%clk 0:00:15]}  Ng2+ {[%clk 0:00:18]} 97. Kf2 {[%clk 0:00:16]}  Nh4 {[%clk 0:00:18]} 98. Ke3 {[%clk 0:00:16]}  Kc5 {[%clk 0:00:18]} 99. Be6 {[%clk 0:00:16]}  Ng6 {[%clk 0:00:17]} 100. Bb3 {[%clk 0:00:15]}  Ne7 {[%clk 0:00:17]} 101. Be6 {[%clk 0:00:15]}  Nc6 {[%clk 0:00:17]} 102. Kd3 {[%clk 0:00:15]}  Na5 {[%clk 0:00:17]} 103. Bd5 {[%clk 0:00:15]}  f5 {[%clk 0:00:17]} 104. Ke3 {[%clk 0:00:14]}  g4 {[%clk 0:00:16]} 105. fxg4 {[%clk 0:00:13]}  fxg4 {[%clk 0:00:17]} 106. Kf2 {[%clk 0:00:13]}  Nc4 {[%clk 0:00:16]} 107. Kg3 {[%clk 0:00:13]}  Ne3 {[%clk 0:00:16]} 108. Ba8 {[%clk 0:00:12]}  Kc4 {[%clk 0:00:16]} 109. Kf2 {[%clk 0:00:13]}  Kd3 {[%clk 0:00:16]} 110. Bb7 {[%clk 0:00:13]}  Nd1+ {[%clk 0:00:16]} 111. Kg3 {[%clk 0:00:13]}  Ne3 {[%clk 0:00:16]} 112. Kf2 {[%clk 0:00:12]}  Kd2 {[%clk 0:00:12]} 113. Bd5 {[%clk 0:00:10]}  Kd3 {[%clk 0:00:12]} 114. c4 {[%clk 0:00:10]}  Kd4 {[%clk 0:00:12]} 115. Kg3 {[%clk 0:00:10]}  Nxc4 {[%clk 0:00:10]} 116. Kxg4 {[%clk 0:00:10]}  Ne3+ {[%clk 0:00:10]} 117. Kf3 {[%clk 0:00:09]}  Nxd5 {[%clk 0:00:10]} 118. exd5 {[%clk 0:00:09]}  Kxd5 {[%clk 0:00:10]} 119. Ke3 {[%clk 0:00:10]}  e4 {[%clk 0:00:11]} 120. Ke2 {[%clk 0:00:10]}  Ke5 {[%clk 0:00:11]} 121. Ke3 {[%clk 0:00:10]}  Kf5 {[%clk 0:00:11]} 122. Ke2 {[%clk 0:00:10]}  Kf4 {[%clk 0:00:12]} 123. Kf2 {[%clk 0:00:11]}  e3+ {[%clk 0:00:09]} 124. Ke2 {[%clk 0:00:11]}  Kg3 {[%clk 0:00:09]} 125. Kxe3 {[%clk 0:00:12]} 1/2-1/2


[Site "https://www.chess.com"]

[Event "Titled Tuesday Blitz March 07 Late 2023"]
[White "TimGrutter03"]
[Black "Barp, Alberto"]
[BlackFideId "872555"]
[WhiteElo "2481"]
[BlackElo "2313"]
[Result "0-1"]
[Round "05"]
[TimeControl "180+2"]
[Date "2023.03.07"]
[WhiteClock "0:00:06"]
[BlackClock "0:00:08"]

1. e4 {[%clk 0:03:00]}  e6 {[%clk 0:02:55]} 2. d4 {[%clk 0:03:00]}  d5 {[%clk 0:02:53]} 3. Nc3 {[%clk 0:03:00]}  Nf6 {[%clk 0:02:44]} 4. exd5 {[%clk 0:02:54]}  exd5 {[%clk 0:02:42]} 5. Bg5 {[%clk 0:02:42]}  c6 {[%clk 0:02:40]} 6. Nf3 {[%clk 0:02:40]}  Be7 {[%clk 0:02:34]} 7. Bd3 {[%clk 0:02:34]}  O-O {[%clk 0:02:33]} 8. O-O {[%clk 0:02:33]}  Bg4 {[%clk 0:02:34]} 9. h3 {[%clk 0:02:31]}  Bh5 {[%clk 0:02:34]} 10. Be2 {[%clk 0:02:30]}  Nbd7 {[%clk 0:02:32]} 11. Ne5 {[%clk 0:02:22]}  Bxe2 {[%clk 0:02:30]} 12. Qxe2 {[%clk 0:02:21]}  Re8 {[%clk 0:02:28]} 13. Qf3 {[%clk 0:02:16]}  Nxe5 {[%clk 0:02:20]} 14. dxe5 {[%clk 0:02:14]}  Nd7 {[%clk 0:02:20]} 15. Bf4 {[%clk 0:02:10]}  Bg5 {[%clk 0:02:12]} 16. Rfe1 {[%clk 0:02:07]}  Bxf4 {[%clk 0:02:11]} 17. Qxf4 {[%clk 0:02:08]}  Qc7 {[%clk 0:02:11]} 18. Re2 {[%clk 0:01:54]}  Rxe5 {[%clk 0:02:07]} 19. Rae1 {[%clk 0:01:49]}  Rae8 {[%clk 0:02:06]} 20. Qd4 {[%clk 0:01:34]}  Rxe2 {[%clk 0:01:57]} 21. Rxe2 {[%clk 0:01:35]}  Rxe2 {[%clk 0:01:55]} 22. Nxe2 {[%clk 0:01:36]}  Qe5 {[%clk 0:01:51]} 23. Kf1 {[%clk 0:01:34]}  Qxd4 {[%clk 0:01:48]} 24. Nxd4 {[%clk 0:01:34]}  g6 {[%clk 0:01:47]} 25. b4 {[%clk 0:01:23]}  Kf8 {[%clk 0:01:42]} 26. a4 {[%clk 0:01:21]}  Ke7 {[%clk 0:01:42]} 27. Ke2 {[%clk 0:01:21]}  Kd6 {[%clk 0:01:42]} 28. a5 {[%clk 0:01:20]}  a6 {[%clk 0:01:30]} 29. Nb3 {[%clk 0:01:06]}  c5 {[%clk 0:01:27]} 30. c3 {[%clk 0:01:06]}  cxb4 {[%clk 0:01:04]} 31. cxb4 {[%clk 0:01:07]}  Ne5 {[%clk 0:01:05]} 32. Kd2 {[%clk 0:00:53]}  Kc6 {[%clk 0:00:55]} 33. Nd4+ {[%clk 0:00:42]}  Kd6 {[%clk 0:00:55]} 34. Nb3 {[%clk 0:00:42]}  Nd7 {[%clk 0:00:50]} 35. Kc3 {[%clk 0:00:39]}  Ke5 {[%clk 0:00:51]} 36. f3 {[%clk 0:00:27]}  h5 {[%clk 0:00:47]} 37. Kd3 {[%clk 0:00:19]}  h4 {[%clk 0:00:44]} 38. Ke3 {[%clk 0:00:18]}  g5 {[%clk 0:00:44]} 39. Kd3 {[%clk 0:00:17]}  Kf4 {[%clk 0:00:33]} 40. Kd4 {[%clk 0:00:18]}  Kg3 {[%clk 0:00:33]} 41. Kxd5 {[%clk 0:00:18]}  Kxg2 {[%clk 0:00:34]} 42. Kd6 {[%clk 0:00:19]}  Nf6 {[%clk 0:00:31]} 43. Kc7 {[%clk 0:00:17]}  Nd5+ {[%clk 0:00:30]} 44. Kxb7 {[%clk 0:00:18]}  Nxb4 {[%clk 0:00:30]} 45. Nc5 {[%clk 0:00:16]}  Kxh3 {[%clk 0:00:20]} 46. Nxa6 {[%clk 0:00:16]}  Nd3 {[%clk 0:00:07]} 47. Kb6 {[%clk 0:00:08]}  g4 {[%clk 0:00:07]} 48. Nc5 {[%clk 0:00:04]}  Nxc5 {[%clk 0:00:06]} 49. Kxc5 {[%clk 0:00:05]}  g3 {[%clk 0:00:07]} 50. a6 {[%clk 0:00:06]}  g2 {[%clk 0:00:08]} 0-1


[Site "https://www.chess.com"]

[Event "Titled Tuesday Blitz March 07 Late 2023"]
[White "Goltseva, Ekaterina"]
[Black "Boyer, Mahel"]
[WhiteFideId "24173770"]
[BlackFideId "45102422"]
[WhiteElo "2200"]
[BlackElo "2439"]
[Result "1/2-1/2"]
[Round "05"]
[TimeControl "180+2"]
[Date "2023.03.07"]
[WhiteClock "0:00:06"]
[BlackClock "0:00:12"]

1. c4 {[%clk 0:03:00]}  e6 {[%clk 0:03:00]} 2. Nc3 {[%clk 0:03:00]}  d5 {[%clk 0:03:00]} 3. d4 {[%clk 0:02:59]}  h6 {[%clk 0:02:59]} 4. Nf3 {[%clk 0:02:58]}  Nf6 {[%clk 0:03:00]} 5. g3 {[%clk 0:02:59]}  Bd6 {[%clk 0:03:00]} 6. Bg2 {[%clk 0:02:59]}  O-O {[%clk 0:03:00]} 7. O-O {[%clk 0:02:59]}  Nc6 {[%clk 0:03:01]} 8. b3 {[%clk 0:02:59]}  dxc4 {[%clk 0:03:01]} 9. bxc4 {[%clk 0:02:59]}  e5 {[%clk 0:03:02]} 10. c5 {[%clk 0:02:54]}  Be7 {[%clk 0:02:41]} 11. dxe5 {[%clk 0:02:34]}  Ng4 {[%clk 0:02:36]} 12. Ba3 {[%clk 0:02:15]}  Ngxe5 {[%clk 0:02:22]} 13. Nxe5 {[%clk 0:02:14]}  Nxe5 {[%clk 0:02:22]} 14. Nd5 {[%clk 0:02:05]}  c6 {[%clk 0:02:13]} 15. Nxe7+ {[%clk 0:01:53]}  Qxe7 {[%clk 0:02:13]} 16. Qc2 {[%clk 0:01:48]}  h5 {[%clk 0:02:08]} 17. h4 {[%clk 0:01:31]}  Bg4 {[%clk 0:02:04]} 18. Bb2 {[%clk 0:01:23]}  Rad8 {[%clk 0:02:04]} 19. Rfe1 {[%clk 0:01:19]}  Rfe8 {[%clk 0:02:03]} 20. Qc3 {[%clk 0:01:17]}  f6 {[%clk 0:02:02]} 21. a4 {[%clk 0:01:05]}  Rd7 {[%clk 0:01:43]} 22. a5 {[%clk 0:00:59]}  a6 {[%clk 0:01:43]} 23. Qb3+ {[%clk 0:00:54]}  Be6 {[%clk 0:01:42]} 24. Qc2 {[%clk 0:00:53]}  Bd5 {[%clk 0:01:40]} 25. Bxe5 {[%clk 0:00:47]}  Qxe5 {[%clk 0:01:38]} 26. Rad1 {[%clk 0:00:45]}  Red8 {[%clk 0:01:34]} 27. Bh3 {[%clk 0:00:32]}  Be6 {[%clk 0:00:51]} 28. Rxd7 {[%clk 0:00:29]}  Rxd7 {[%clk 0:00:50]} 29. Bxe6+ {[%clk 0:00:12]}  Qxe6 {[%clk 0:00:51]} 30. Rd1 {[%clk 0:00:12]}  Rd5 {[%clk 0:00:41]} 31. Rxd5 {[%clk 0:00:11]}  Qxd5 {[%clk 0:00:42]} 32. e3 {[%clk 0:00:06]}  Kf7 {[%clk 0:00:36]} 33. Qc3 {[%clk 0:00:06]}  Ke6 {[%clk 0:00:33]} 34. Qb4 {[%clk 0:00:06]}  Kf5 {[%clk 0:00:26]} 35. Qf4+ {[%clk 0:00:05]}  Ke6 {[%clk 0:00:26]} 36. Qb4 {[%clk 0:00:05]}  Kf5 {[%clk 0:00:17]} 37. Qf4+ {[%clk 0:00:05]}  Kg6 {[%clk 0:00:18]} 38. Qb4 {[%clk 0:00:05]}  Qd7 {[%clk 0:00:18]} 39. Qe4+ {[%clk 0:00:05]}  Kf7 {[%clk 0:00:19]} 40. Qc4+ {[%clk 0:00:05]}  Qe6 {[%clk 0:00:19]} 41. Qb4 {[%clk 0:00:05]}  Qe7 {[%clk 0:00:20]} 42. Qc4+ {[%clk 0:00:05]}  Kg6 {[%clk 0:00:20]} 43. Qb4 {[%clk 0:00:05]}  Kf5 {[%clk 0:00:16]} 44. Qf4+ {[%clk 0:00:05]}  Kg6 {[%clk 0:00:16]} 45. Qb4 {[%clk 0:00:05]}  Kh7 {[%clk 0:00:14]} 46. Qb6 {[%clk 0:00:05]}  Qd7 {[%clk 0:00:12]} 47. Qb4 {[%clk 0:00:05]}  Qc7 {[%clk 0:00:13]} 48. Qb1+ {[%clk 0:00:04]}  Kg8 {[%clk 0:00:13]} 49. Qb4 {[%clk 0:00:05]}  Qf7 {[%clk 0:00:12]} 50. Qb6 {[%clk 0:00:05]}  Kh7 {[%clk 0:00:12]} 51. Qb4 {[%clk 0:00:05]}  g5 {[%clk 0:00:12]} 52. Qd4 {[%clk 0:00:03]}  Kg6 {[%clk 0:00:12]} 53. hxg5 {[%clk 0:00:03]}  fxg5 {[%clk 0:00:13]} 54. Qe4+ {[%clk 0:00:03]}  Qf5 {[%clk 0:00:13]} 55. Qe8+ {[%clk 0:00:04]}  Qf7 {[%clk 0:00:13]} 56. Qe4+ {[%clk 0:00:04]}  Kh6 {[%clk 0:00:13]} 57. Qe5 {[%clk 0:00:04]}  Qf8 {[%clk 0:00:10]} 58. Qe6+ {[%clk 0:00:04]}  Kg7 {[%clk 0:00:11]} 59. Qd7+ {[%clk 0:00:04]}  Qf7 {[%clk 0:00:11]} 60. Qd4+ {[%clk 0:00:05]}  Qf6 {[%clk 0:00:11]} 61. Qd7+ {[%clk 0:00:05]}  Qf7 {[%clk 0:00:11]} 62. Qd4+ {[%clk 0:00:06]}  Kg6 {[%clk 0:00:12]} 63. Qe4+ {[%clk 0:00:06]} 1/2-1/2


[Site "https://www.chess.com"]